[Event "Titled Tuesday Blitz September 27 Late 2022"]
[White "Poltorak, Sebastian"]
[Black "Harvey, Marcus R"]
[WhiteFideId "1199498"]
[BlackFideId "400092"]
[WhiteElo "2104"]
[BlackElo "2485"]
[Result "0-1"]
[Round "06"]
[TimeControl "180+1"]
[Date "2022.09.28"]
[WhiteClock "0:00:02"]
[BlackClock "0:00:07"]

1. d4 {[%clk 0:03:00]}  Nf6 {[%clk 0:02:55]} 2. c4 {[%clk 0:02:57]}  e6 {[%clk 0:02:55]} 3. Nc3 {[%clk 0:02:56]}  Bb4 {[%clk 0:02:55]} 4. Nf3 {[%clk 0:02:55]}  O-O {[%clk 0:02:55]} 5. Bg5 {[%clk 0:02:53]}  c5 {[%clk 0:02:55]} 6. Rc1 {[%clk 0:02:53]}  h6 {[%clk 0:02:50]} 7. Bh4 {[%clk 0:02:52]}  cxd4 {[%clk 0:02:50]} 8. Nxd4 {[%clk 0:02:52]}  Nc6 {[%clk 0:02:50]} 9. e3 {[%clk 0:02:49]}  d5 {[%clk 0:02:35]} 10. Bxf6 {[%clk 0:02:31]}  Qxf6 {[%clk 0:02:00]} 11. a3 {[%clk 0:02:25]}  Bxc3+ {[%clk 0:01:23]} 12. Rxc3 {[%clk 0:02:25]}  Nxd4 {[%clk 0:01:21]} 13. Qxd4 {[%clk 0:02:23]}  Qxd4 {[%clk 0:01:21]} 14. exd4 {[%clk 0:02:24]}  dxc4 {[%clk 0:01:20]} 15. Bxc4 {[%clk 0:02:19]}  Rd8 {[%clk 0:01:19]} 16. Rd3 {[%clk 0:02:10]}  b5 {[%clk 0:01:04]} 17. Bb3 {[%clk 0:01:36]}  Bb7 {[%clk 0:01:03]} 18. O-O {[%clk 0:01:37]}  Rac8 {[%clk 0:00:59]} 19. Rfd1 {[%clk 0:01:30]}  Bd5 {[%clk 0:00:55]} 20. Kf1 {[%clk 0:00:53]}  a6 {[%clk 0:00:51]} 21. Bxd5 {[%clk 0:00:45]}  Rxd5 {[%clk 0:00:52]} 22. Ke2 {[%clk 0:00:45]}  Kf8 {[%clk 0:00:45]} 23. Rc3 {[%clk 0:00:44]}  Rcd8 {[%clk 0:00:42]} 24. Ke3 {[%clk 0:00:41]}  R8d6 {[%clk 0:00:37]} 25. f4 {[%clk 0:00:38]}  g5 {[%clk 0:00:34]} 26. g3 {[%clk 0:00:36]}  gxf4+ {[%clk 0:00:33]} 27. gxf4 {[%clk 0:00:37]}  Ke7 {[%clk 0:00:31]} 28. Rd2 {[%clk 0:00:14]}  Kf6 {[%clk 0:00:30]} 29. Rc5 {[%clk 0:00:10]}  Kf5 {[%clk 0:00:24]} 30. b4 {[%clk 0:00:09]}  Kg4 {[%clk 0:00:22]} 31. Ke4 {[%clk 0:00:07]}  Kh3 {[%clk 0:00:17]} 32. Rc3+ {[%clk 0:00:07]}  Kh4 {[%clk 0:00:17]} 33. Rc5 {[%clk 0:00:06]}  Rd8 {[%clk 0:00:14]} 34. Rc7 {[%clk 0:00:06]}  R8d7 {[%clk 0:00:13]} 35. Rc5 {[%clk 0:00:05]}  Kh5 {[%clk 0:00:11]} 36. Rc3 {[%clk 0:00:04]}  Kg6 {[%clk 0:00:11]} 37. Rg2+ {[%clk 0:00:04]}  Kf6 {[%clk 0:00:11]} 38. Rd2 {[%clk 0:00:04]}  Rh5 {[%clk 0:00:11]} 39. Rc5 {[%clk 0:00:03]}  Rh3 {[%clk 0:00:11]} 40. Rd3 {[%clk 0:00:03]}  Rxh2 {[%clk 0:00:10]} 41. Rc6 {[%clk 0:00:03]}  Ra7 {[%clk 0:00:07]} 42. d5 {[%clk 0:00:03]}  a5 {[%clk 0:00:07]} 43. dxe6 {[%clk 0:00:03]}  Re2+ {[%clk 0:00:07]} 44. Kf3 {[%clk 0:00:03]}  Rxe6 {[%clk 0:00:08]} 45. Rdd6 {[%clk 0:00:02]}  axb4 {[%clk 0:00:07]} 46. axb4 {[%clk 0:00:03]}  Ra3+ {[%clk 0:00:07]} 47. Kg4 {[%clk 0:00:04]}  Ra4 {[%clk 0:00:07]} 48. Rxe6+ {[%clk 0:00:02]}  fxe6 {[%clk 0:00:07]} 49. Kh5 {[%clk 0:00:02]}  Rxb4 {[%clk 0:00:07]} 50. Rc5 {[%clk 0:00:02]}  Rxf4 {[%clk 0:00:07]} 0-1


[Site "https://www.chess.com"]

[Event "Titled Tuesday Blitz September 27 Late 2022"]
[White "Popilski, Gil"]
[Black "Kravtsiv, Martyn"]
[WhiteFideId "2809060"]
[BlackFideId "14113147"]
[WhiteElo "2537"]
[BlackElo "2694"]
[Result "0-1"]
[Round "06"]
[TimeControl "180+1"]
[Date "2022.09.27"]
[WhiteClock "0:00:03"]
[BlackClock "0:00:54"]

1. d4 {[%clk 0:02:34]}  d5 {[%clk 0:02:58]} 2. c4 {[%clk 0:02:32]}  e6 {[%clk 0:02:58]} 3. Nf3 {[%clk 0:02:31]}  Nf6 {[%clk 0:02:57]} 4. g3 {[%clk 0:02:31]}  Bb4+ {[%clk 0:02:55]} 5. Nc3 {[%clk 0:02:29]}  O-O {[%clk 0:02:49]} 6. Bg2 {[%clk 0:02:27]}  b6 {[%clk 0:02:49]} 7. O-O {[%clk 0:02:26]}  Bb7 {[%clk 0:02:50]} 8. cxd5 {[%clk 0:02:25]}  exd5 {[%clk 0:02:49]} 9. Ne5 {[%clk 0:02:24]}  Nbd7 {[%clk 0:02:48]} 10. Bg5 {[%clk 0:02:21]}  Be7 {[%clk 0:02:45]} 11. Rc1 {[%clk 0:02:19]}  h6 {[%clk 0:02:43]} 12. Bf4 {[%clk 0:02:04]}  a6 {[%clk 0:02:42]} 13. Nxd7 {[%clk 0:01:33]}  Qxd7 {[%clk 0:02:40]} 14. Bxc7 {[%clk 0:01:30]}  b5 {[%clk 0:02:06]} 15. Be5 {[%clk 0:01:29]}  Rac8 {[%clk 0:02:06]} 16. Qb3 {[%clk 0:01:28]}  Rc4 {[%clk 0:02:03]} 17. e3 {[%clk 0:01:13]}  Rfc8 {[%clk 0:02:01]} 18. Ne2 {[%clk 0:01:09]}  Ne4 {[%clk 0:01:56]} 19. Rxc4 {[%clk 0:00:51]}  Rxc4 {[%clk 0:01:54]} 20. Rc1 {[%clk 0:00:41]}  f6 {[%clk 0:01:48]} 21. Bf4 {[%clk 0:00:31]}  g5 {[%clk 0:01:47]} 22. Bb8 {[%clk 0:00:16]}  Qc8 {[%clk 0:01:43]} 23. Rxc4 {[%clk 0:00:14]}  bxc4 {[%clk 0:01:30]} 24. Qb6 {[%clk 0:00:11]}  Qxb8 {[%clk 0:01:30]} 25. Bxe4 {[%clk 0:00:05]}  dxe4 {[%clk 0:01:29]} 26. Qe6+ {[%clk 0:00:04]}  Kf8 {[%clk 0:01:28]} 27. Nc3 {[%clk 0:00:05]}  Qc8 {[%clk 0:01:26]} 28. Qb6 {[%clk 0:00:05]}  Qc6 {[%clk 0:01:25]} 29. Qa7 {[%clk 0:00:04]}  Qc8 {[%clk 0:00:55]} 30. d5 {[%clk 0:00:03]}  Bc5 {[%clk 0:00:54]} 0-1


[Site "https://www.chess.com"]

[Event "Titled Tuesday Blitz September 27 Late 2022"]
[White "Romanchuk, Viktor"]
[Black "Xiong, Jeffery"]
[WhiteFideId "14109271"]
[BlackFideId "2047640"]
[WhiteElo "2242"]
[BlackElo "2714"]
[Result "0-1"]
[Round "06"]
[TimeControl "180+1"]
[Date "2022.09.28"]
[WhiteClock "0:00:11"]
[BlackClock "0:01:04"]

1. d4 {[%clk 0:03:00]}  d5 {[%clk 0:02:57]} 2. c4 {[%clk 0:03:00]}  e6 {[%clk 0:02:58]} 3. Nc3 {[%clk 0:02:59]}  Nf6 {[%clk 0:02:58]} 4. Nf3 {[%clk 0:02:58]}  a6 {[%clk 0:02:53]} 5. cxd5 {[%clk 0:02:57]}  exd5 {[%clk 0:02:54]} 6. Bf4 {[%clk 0:02:57]}  Bd6 {[%clk 0:02:48]} 7. Bg3 {[%clk 0:02:57]}  O-O {[%clk 0:02:48]} 8. e3 {[%clk 0:02:56]}  c6 {[%clk 0:02:47]} 9. Qc2 {[%clk 0:02:54]}  a5 {[%clk 0:02:44]} 10. Bd3 {[%clk 0:02:53]}  Na6 {[%clk 0:02:44]} 11. a3 {[%clk 0:02:52]}  Nc7 {[%clk 0:02:44]} 12. Bh4 {[%clk 0:02:48]}  h6 {[%clk 0:02:43]} 13. Rb1 {[%clk 0:02:45]}  Re8 {[%clk 0:02:41]} 14. O-O {[%clk 0:02:44]}  Bg4 {[%clk 0:02:41]} 15. Nd2 {[%clk 0:02:43]}  Bd7 {[%clk 0:02:40]} 16. Bg3 {[%clk 0:02:34]}  Qe7 {[%clk 0:02:36]} 17. Rfe1 {[%clk 0:02:32]}  Bxg3 {[%clk 0:02:32]} 18. hxg3 {[%clk 0:02:31]}  Qd6 {[%clk 0:02:32]} 19. Rbd1 {[%clk 0:02:17]}  Bg4 {[%clk 0:02:31]} 20. Rb1 {[%clk 0:02:08]}  h5 {[%clk 0:02:31]} 21. f3 {[%clk 0:01:46]}  Bd7 {[%clk 0:02:31]} 22. Nf1 {[%clk 0:01:42]}  Ne6 {[%clk 0:02:31]} 23. b4 {[%clk 0:01:35]}  axb4 {[%clk 0:02:31]} 24. axb4 {[%clk 0:01:36]}  b5 {[%clk 0:02:30]} 25. Ne2 {[%clk 0:01:30]}  Ra3 {[%clk 0:02:27]} 26. Nf4 {[%clk 0:01:26]}  Rea8 {[%clk 0:02:22]} 27. Rb2 {[%clk 0:01:22]}  R8a4 {[%clk 0:02:13]} 28. Qd2 {[%clk 0:01:18]}  Nc7 {[%clk 0:02:08]} 29. Bc2 {[%clk 0:01:15]}  Ra8 {[%clk 0:02:08]} 30. Nd3 {[%clk 0:01:14]}  Bf5 {[%clk 0:02:06]} 31. Ne5 {[%clk 0:01:10]}  Be6 {[%clk 0:01:47]} 32. Rc1 {[%clk 0:01:03]}  Nd7 {[%clk 0:01:47]} 33. Nxd7 {[%clk 0:00:54]}  Bxd7 {[%clk 0:01:47]} 34. e4 {[%clk 0:00:46]}  dxe4 {[%clk 0:01:46]} 35. fxe4 {[%clk 0:00:46]}  Ne6 {[%clk 0:01:45]} 36. Rd1 {[%clk 0:00:44]}  g6 {[%clk 0:01:24]} 37. d5 {[%clk 0:00:32]}  cxd5 {[%clk 0:01:25]} 38. exd5 {[%clk 0:00:32]}  Nc7 {[%clk 0:01:26]} 39. Be4 {[%clk 0:00:31]}  Re8 {[%clk 0:01:25]} 40. Bf3 {[%clk 0:00:31]}  Bf5 {[%clk 0:01:25]} 41. Re1 {[%clk 0:00:25]}  Rxe1 {[%clk 0:01:18]} 42. Qxe1 {[%clk 0:00:25]}  Nxd5 {[%clk 0:01:19]} 43. Qe8+ {[%clk 0:00:17]}  Kg7 {[%clk 0:01:19]} 44. Rd2 {[%clk 0:00:17]}  Qb6+ {[%clk 0:01:18]} 45. Kh2 {[%clk 0:00:16]}  Nf6 {[%clk 0:01:19]} 46. Qe5 {[%clk 0:00:15]}  Rd3 {[%clk 0:01:07]} 47. Rxd3 {[%clk 0:00:12]}  Bxd3 {[%clk 0:01:08]} 48. Ne3 {[%clk 0:00:12]}  Be4 {[%clk 0:01:05]} 49. Bxe4 {[%clk 0:00:11]}  Qxe3 {[%clk 0:01:04]} 0-1


[Site "https://www.chess.com"]

[Event "Titled Tuesday Blitz September 27 Late 2022"]
[White "Sokolovsky, Yahli"]
[Black "Richter, Paul"]
[WhiteFideId "2820242"]
[BlackFideId "2046350"]
[WhiteElo "1920"]
[BlackElo "2552"]
[Result "1/2-1/2"]
[Round "06"]
[TimeControl "180+1"]
[Date "2022.09.28"]
[WhiteClock "0:00:06"]
[BlackClock "0:00:07"]

1. b3 {[%clk 0:03:00]}  Nf6 {[%clk 0:02:57]} 2. Bb2 {[%clk 0:03:01]}  g6 {[%clk 0:02:58]} 3. d4 {[%clk 0:03:01]}  Bg7 {[%clk 0:02:58]} 4. Nf3 {[%clk 0:03:02]}  O-O {[%clk 0:02:58]} 5. g3 {[%clk 0:03:02]}  d6 {[%clk 0:02:58]} 6. Bg2 {[%clk 0:03:03]}  Re8 {[%clk 0:02:57]} 7. O-O {[%clk 0:03:03]}  Nbd7 {[%clk 0:02:58]} 8. c4 {[%clk 0:03:00]}  c6 {[%clk 0:02:57]} 9. Nc3 {[%clk 0:02:47]}  e5 {[%clk 0:02:55]} 10. dxe5 {[%clk 0:02:48]}  dxe5 {[%clk 0:02:56]} 11. e4 {[%clk 0:02:48]}  Qc7 {[%clk 0:02:52]} 12. Qe2 {[%clk 0:02:49]}  Nc5 {[%clk 0:02:49]} 13. Rfd1 {[%clk 0:02:48]}  Bg4 {[%clk 0:02:46]} 14. Ba3 {[%clk 0:02:46]}  Qa5 {[%clk 0:02:40]} 15. Bxc5 {[%clk 0:02:38]}  Qxc5 {[%clk 0:02:39]} 16. h3 {[%clk 0:02:37]}  Bxf3 {[%clk 0:02:38]} 17. Bxf3 {[%clk 0:02:37]}  Rad8 {[%clk 0:02:31]} 18. Na4 {[%clk 0:02:25]}  Qa5 {[%clk 0:02:28]} 19. Qe3 {[%clk 0:02:25]}  Bf8 {[%clk 0:02:12]} 20. Be2 {[%clk 0:02:09]}  a6 {[%clk 0:02:07]} 21. c5 {[%clk 0:02:07]}  Qb4 {[%clk 0:01:55]} 22. Bc4 {[%clk 0:02:00]}  Qa5 {[%clk 0:01:39]} 23. Qf3 {[%clk 0:01:36]}  Kg7 {[%clk 0:01:26]} 24. Qe3 {[%clk 0:01:14]}  Rxd1+ {[%clk 0:01:17]} 25. Rxd1 {[%clk 0:01:14]}  Rd8 {[%clk 0:01:18]} 26. Rxd8 {[%clk 0:00:38]}  Qxd8 {[%clk 0:01:18]} 27. Qc3 {[%clk 0:00:38]}  Qc7 {[%clk 0:00:55]} 28. f3 {[%clk 0:00:36]}  Be7 {[%clk 0:00:51]} 29. Kg2 {[%clk 0:00:34]}  Nd7 {[%clk 0:00:50]} 30. b4 {[%clk 0:00:32]}  Qd8 {[%clk 0:00:46]} 31. Qd3 {[%clk 0:00:28]}  Qc7 {[%clk 0:00:43]} 32. Qb3 {[%clk 0:00:28]}  Nf6 {[%clk 0:00:24]} 33. Bxf7 {[%clk 0:00:21]}  Qd8 {[%clk 0:00:24]} 34. Bc4 {[%clk 0:00:19]}  Qd2+ {[%clk 0:00:23]} 35. Kg1 {[%clk 0:00:14]}  Nh5 {[%clk 0:00:18]} 36. Qd3 {[%clk 0:00:06]}  Qe1+ {[%clk 0:00:16]} 37. Qf1 {[%clk 0:00:07]}  Qxg3+ {[%clk 0:00:16]} 38. Qg2 {[%clk 0:00:08]}  Qe1+ {[%clk 0:00:15]} 39. Qf1 {[%clk 0:00:08]}  Qe3+ {[%clk 0:00:14]} 40. Qf2 {[%clk 0:00:09]}  Qc1+ {[%clk 0:00:14]} 41. Qf1 {[%clk 0:00:08]}  Qe3+ {[%clk 0:00:11]} 42. Qf2 {[%clk 0:00:08]}  Qc1+ {[%clk 0:00:09]} 43. Qf1 {[%clk 0:00:08]}  Qc2 {[%clk 0:00:09]} 44. Qe2 {[%clk 0:00:08]}  Qc1+ {[%clk 0:00:07]} 45. Qf1 {[%clk 0:00:06]} 1/2-1/2


[Site "https://www.chess.com"]

[Event "Titled Tuesday Blitz September 27 Late 2022"]
[White "Storey, Charles H"]
[Black "Hambleton, Aman"]
[WhiteFideId "406686"]
[BlackFideId "2606577"]
[WhiteElo "2188"]
[BlackElo "2538"]
[Result "1-0"]
[Round "06"]
[TimeControl "180+1"]
[Date "2022.09.28"]
[WhiteClock "0:00:17"]
[BlackClock "0:00:01"]

1. e4 {[%clk 0:03:00]}  c5 {[%clk 0:02:44]} 2. Nf3 {[%clk 0:02:57]}  e6 {[%clk 0:02:44]} 3. d3 {[%clk 0:02:55]}  d5 {[%clk 0:02:44]} 4. Nbd2 {[%clk 0:02:56]}  Bd6 {[%clk 0:02:44]} 5. g3 {[%clk 0:02:55]}  Nc6 {[%clk 0:02:44]} 6. Bg2 {[%clk 0:02:55]}  Nge7 {[%clk 0:02:45]} 7. O-O {[%clk 0:02:56]}  O-O {[%clk 0:02:45]} 8. Re1 {[%clk 0:02:55]}  Qc7 {[%clk 0:02:46]} 9. Qe2 {[%clk 0:02:54]}  f6 {[%clk 0:02:45]} 10. c3 {[%clk 0:02:53]}  d4 {[%clk 0:02:45]} 11. c4 {[%clk 0:02:52]}  e5 {[%clk 0:02:42]} 12. a3 {[%clk 0:02:51]}  g5 {[%clk 0:02:34]} 13. h4 {[%clk 0:02:50]}  h6 {[%clk 0:02:33]} 14. hxg5 {[%clk 0:02:47]}  fxg5 {[%clk 0:02:24]} 15. Nh2 {[%clk 0:02:44]}  Kg7 {[%clk 0:02:04]} 16. Qh5 {[%clk 0:02:22]}  Ng8 {[%clk 0:01:12]} 17. Ng4 {[%clk 0:02:07]}  Qf7 {[%clk 0:01:11]} 18. Qxf7+ {[%clk 0:02:04]}  Rxf7 {[%clk 0:01:10]} 19. Nh2 {[%clk 0:01:57]}  g4 {[%clk 0:00:55]} 20. Bf1 {[%clk 0:01:52]}  Be6 {[%clk 0:00:46]} 21. Be2 {[%clk 0:01:52]}  h5 {[%clk 0:00:47]} 22. f3 {[%clk 0:01:23]}  Nh6 {[%clk 0:00:29]} 23. Ndf1 {[%clk 0:01:14]}  Rg8 {[%clk 0:00:13]} 24. Bxh6+ {[%clk 0:00:52]}  Kxh6 {[%clk 0:00:13]} 25. fxg4 {[%clk 0:00:53]}  hxg4 {[%clk 0:00:14]} 26. Nd2 {[%clk 0:00:46]}  Rgf8 {[%clk 0:00:06]} 27. Bxg4 {[%clk 0:00:38]}  Bxg4 {[%clk 0:00:03]} 28. Nxg4+ {[%clk 0:00:38]}  Kg5 {[%clk 0:00:03]} 29. Nh2 {[%clk 0:00:36]}  Rf2 {[%clk 0:00:01]} 30. Rad1 {[%clk 0:00:35]}  a6 {[%clk 0:00:01]} 31. Rf1 {[%clk 0:00:32]}  Rxf1+ {[%clk 0:00:01]} 32. Ndxf1 {[%clk 0:00:26]}  Rb8 {[%clk 0:00:02]} 33. Kg2 {[%clk 0:00:24]}  b5 {[%clk 0:00:02]} 34. Nf3+ {[%clk 0:00:24]}  Kf6 {[%clk 0:00:02]} 35. b3 {[%clk 0:00:20]}  Na5 {[%clk 0:00:02]} 36. N1d2 {[%clk 0:00:18]}  bxc4 {[%clk 0:00:03]} 37. bxc4 {[%clk 0:00:18]}  Rb2 {[%clk 0:00:01]} 38. Kh3 {[%clk 0:00:18]}  Ra2 {[%clk 0:00:01]} 39. Rf1 {[%clk 0:00:17]} 1-0


[Site "https://www.chess.com"]

[Event "Titled Tuesday Blitz September 27 Late 2022"]
[White "Taboas Rodriguez, Daniel"]
[Black "Sibilio, Mario"]
[WhiteFideId "2208466"]
[BlackFideId "800422"]
[WhiteElo "2429"]
[BlackElo "2296"]
[Result "1-0"]
[Round "06"]
[TimeControl "180+1"]
[Date "2022.09.28"]
[WhiteClock "0:00:20"]
[BlackClock "0:00:01"]

1. d4 {[%clk 0:03:00]}  Nf6 {[%clk 0:02:56]} 2. Nf3 {[%clk 0:03:00]}  e6 {[%clk 0:02:52]} 3. c4 {[%clk 0:02:59]}  c5 {[%clk 0:02:51]} 4. e3 {[%clk 0:02:59]}  d5 {[%clk 0:02:46]} 5. Nc3 {[%clk 0:02:58]}  cxd4 {[%clk 0:02:45]} 6. exd4 {[%clk 0:02:58]}  Bb4 {[%clk 0:02:45]} 7. Bg5 {[%clk 0:02:55]}  O-O {[%clk 0:02:32]} 8. cxd5 {[%clk 0:02:49]}  Qxd5 {[%clk 0:02:24]} 9. Bxf6 {[%clk 0:02:47]}  gxf6 {[%clk 0:02:23]} 10. Bd3 {[%clk 0:02:47]}  b6 {[%clk 0:02:08]} 11. O-O {[%clk 0:02:46]}  Bxc3 {[%clk 0:02:07]} 12. bxc3 {[%clk 0:02:47]}  Bb7 {[%clk 0:02:06]} 13. Re1 {[%clk 0:02:42]}  Qh5 {[%clk 0:02:04]} 14. Be4 {[%clk 0:02:38]}  Bxe4 {[%clk 0:02:01]} 15. Rxe4 {[%clk 0:02:38]}  Nc6 {[%clk 0:01:49]} 16. Rh4 {[%clk 0:02:35]}  Qg6 {[%clk 0:01:40]} 17. Rh3 {[%clk 0:02:34]}  Kh8 {[%clk 0:01:35]} 18. Rg3 {[%clk 0:02:33]}  Qf5 {[%clk 0:01:27]} 19. Nd2 {[%clk 0:02:18]}  Rg8 {[%clk 0:01:24]} 20. Rf3 {[%clk 0:02:12]}  Qg5 {[%clk 0:01:21]} 21. g3 {[%clk 0:02:12]}  f5 {[%clk 0:01:20]} 22. Nc4 {[%clk 0:02:00]}  Rgd8 {[%clk 0:01:07]} 23. Qe2 {[%clk 0:01:51]}  Qg7 {[%clk 0:00:50]} 24. Re1 {[%clk 0:01:50]}  b5 {[%clk 0:00:44]} 25. Ne5 {[%clk 0:01:35]}  Nxe5 {[%clk 0:00:38]} 26. dxe5 {[%clk 0:01:36]}  Rd5 {[%clk 0:00:33]} 27. Re3 {[%clk 0:01:26]}  Rad8 {[%clk 0:00:31]} 28. a3 {[%clk 0:01:18]}  a6 {[%clk 0:00:27]} 29. Qh5 {[%clk 0:01:09]}  Qg6 {[%clk 0:00:21]} 30. Qh4 {[%clk 0:01:06]}  Rd2 {[%clk 0:00:16]} 31. R3e2 {[%clk 0:01:03]}  Rd1 {[%clk 0:00:13]} 32. Kg2 {[%clk 0:01:00]}  h6 {[%clk 0:00:10]} 33. c4 {[%clk 0:00:51]}  Qg5 {[%clk 0:00:08]} 34. Qxg5 {[%clk 0:00:48]}  hxg5 {[%clk 0:00:07]} 35. cxb5 {[%clk 0:00:48]}  axb5 {[%clk 0:00:07]} 36. Rxd1 {[%clk 0:00:47]}  Rxd1 {[%clk 0:00:07]} 37. Rb2 {[%clk 0:00:47]}  Rd5 {[%clk 0:00:06]} 38. f4 {[%clk 0:00:48]}  g4 {[%clk 0:00:06]} 39. Kf2 {[%clk 0:00:45]}  Kg7 {[%clk 0:00:05]} 40. Ke3 {[%clk 0:00:45]}  f6 {[%clk 0:00:05]} 41. exf6+ {[%clk 0:00:43]}  Kxf6 {[%clk 0:00:05]} 42. Rd2 {[%clk 0:00:44]}  Rc5 {[%clk 0:00:04]} 43. Kd4 {[%clk 0:00:41]}  Rc4+ {[%clk 0:00:03]} 44. Kd3 {[%clk 0:00:41]}  Ra4 {[%clk 0:00:02]} 45. Rb2 {[%clk 0:00:21]}  Rxa3+ {[%clk 0:00:02]} 46. Kd4 {[%clk 0:00:21]}  b4 {[%clk 0:00:01]} 47. Rxb4 {[%clk 0:00:20]}  Ra2 {[%clk 0:00:01]} 48. Rb3 {[%clk 0:00:20]} 1-0


[Site "https://www.chess.com"]

[Event "Titled Tuesday Blitz September 27 Late 2022"]
[White "Tologon tegin, Semetei"]
[Black "Bartel, Mateusz"]
[WhiteFideId "13800574"]
[BlackFideId "1112635"]
[WhiteElo "2174"]
[BlackElo "2526"]
[Result "0-1"]
[Round "06"]
[TimeControl "180+1"]
[Date "2022.09.27"]
[WhiteClock "0:01:33"]
[BlackClock "0:01:25"]

1. Nf3 {[%clk 0:03:00]}  Nf6 {[%clk 0:02:56]} 2. g3 {[%clk 0:02:58]}  b5 {[%clk 0:02:56]} 3. e3 {[%clk 0:02:57]}  a6 {[%clk 0:02:53]} 4. a4 {[%clk 0:02:42]}  b4 {[%clk 0:02:53]} 5. Bg2 {[%clk 0:02:41]}  Bb7 {[%clk 0:02:53]} 6. O-O {[%clk 0:02:41]}  a5 {[%clk 0:02:51]} 7. d4 {[%clk 0:02:35]}  e6 {[%clk 0:02:48]} 8. c4 {[%clk 0:02:35]}  d6 {[%clk 0:02:47]} 9. b3 {[%clk 0:02:34]}  Nbd7 {[%clk 0:02:47]} 10. Bb2 {[%clk 0:02:34]}  Be7 {[%clk 0:02:44]} 11. Nbd2 {[%clk 0:02:34]}  O-O {[%clk 0:02:42]} 12. Qc2 {[%clk 0:02:34]}  c5 {[%clk 0:02:42]} 13. Rfe1 {[%clk 0:02:33]}  Rc8 {[%clk 0:02:31]} 14. Rad1 {[%clk 0:02:28]}  Qb6 {[%clk 0:02:29]} 15. Qb1 {[%clk 0:02:23]}  d5 {[%clk 0:02:23]} 16. Ne5 {[%clk 0:02:06]}  Rfd8 {[%clk 0:02:06]} 17. Ndf3 {[%clk 0:01:59]}  dxc4 {[%clk 0:02:01]} 18. Nxc4 {[%clk 0:01:59]}  Qa7 {[%clk 0:02:00]} 19. Nfe5 {[%clk 0:01:51]}  Bxg2 {[%clk 0:01:59]} 20. Kxg2 {[%clk 0:01:51]}  Nb6 {[%clk 0:01:48]} 21. dxc5 {[%clk 0:01:44]}  Nxc4 {[%clk 0:01:46]} 22. Nxc4 {[%clk 0:01:43]}  Qxc5 {[%clk 0:01:43]} 23. e4 {[%clk 0:01:39]}  h5 {[%clk 0:01:29]} 24. h4 {[%clk 0:01:36]}  Ng4 {[%clk 0:01:27]} 25. f3 {[%clk 0:01:33]}  Qf2+ {[%clk 0:01:25]} 0-1


[Site "https://www.chess.com"]

[Event "Titled Tuesday Blitz September 27 Late 2022"]
[White "Tristan, Leonardo"]
[Black "Shandrygin, Nikita"]
[WhiteFideId "113816"]
[BlackFideId "24198668"]
[WhiteElo "2404"]
[BlackElo "2323"]
[Result "0-1"]
[Round "06"]
[TimeControl "180+1"]
[Date "2022.09.28"]
[WhiteClock "0:00:01"]
[BlackClock "0:00:07"]

1. d4 {[%clk 0:03:00]}  Nf6 {[%clk 0:02:59]} 2. Nf3 {[%clk 0:03:01]}  e6 {[%clk 0:02:59]} 3. Bf4 {[%clk 0:03:01]}  Be7 {[%clk 0:02:59]} 4. h3 {[%clk 0:02:57]}  O-O {[%clk 0:02:59]} 5. e3 {[%clk 0:02:58]}  b6 {[%clk 0:02:59]} 6. Bd3 {[%clk 0:02:58]}  Bb7 {[%clk 0:03:00]} 7. Nbd2 {[%clk 0:02:58]}  d5 {[%clk 0:03:00]} 8. O-O {[%clk 0:02:58]}  c5 {[%clk 0:03:00]} 9. c3 {[%clk 0:02:57]}  Ne4 {[%clk 0:02:57]} 10. Qe2 {[%clk 0:02:55]}  Nd7 {[%clk 0:02:54]} 11. Rfe1 {[%clk 0:02:55]}  f5 {[%clk 0:02:37]} 12. Rad1 {[%clk 0:02:55]}  c4 {[%clk 0:02:24]} 13. Bc2 {[%clk 0:02:52]}  Bc6 {[%clk 0:02:12]} 14. Ne5 {[%clk 0:02:52]}  Nxe5 {[%clk 0:02:12]} 15. Bxe5 {[%clk 0:02:52]}  Be8 {[%clk 0:02:04]} 16. f3 {[%clk 0:02:51]}  Nxd2 {[%clk 0:02:00]} 17. Qxd2 {[%clk 0:02:50]}  Bh4 {[%clk 0:02:00]} 18. g3 {[%clk 0:02:48]}  Bg5 {[%clk 0:01:51]} 19. Qh2 {[%clk 0:02:42]}  Bh5 {[%clk 0:01:50]} 20. g4 {[%clk 0:02:39]}  Bg6 {[%clk 0:01:50]} 21. f4 {[%clk 0:01:23]}  Be7 {[%clk 0:01:38]} 22. Re2 {[%clk 0:01:23]}  Bf6 {[%clk 0:01:26]} 23. Kh1 {[%clk 0:01:23]}  Bxe5 {[%clk 0:01:25]} 24. dxe5 {[%clk 0:01:18]}  Qe8 {[%clk 0:00:56]} 25. Rg1 {[%clk 0:01:15]}  fxg4 {[%clk 0:00:55]} 26. hxg4 {[%clk 0:01:08]}  Bxc2 {[%clk 0:00:54]} 27. Rxc2 {[%clk 0:01:08]}  Qg6 {[%clk 0:00:54]} 28. Qg2 {[%clk 0:00:52]}  Rf7 {[%clk 0:00:38]} 29. Rd2 {[%clk 0:00:52]}  Raf8 {[%clk 0:00:36]} 30. Qf3 {[%clk 0:00:43]}  b5 {[%clk 0:00:24]} 31. Rh2 {[%clk 0:00:42]}  Qd3 {[%clk 0:00:19]} 32. Rd1 {[%clk 0:00:40]}  Qg6 {[%clk 0:00:19]} 33. Kg2 {[%clk 0:00:34]}  a5 {[%clk 0:00:18]} 34. a3 {[%clk 0:00:34]}  b4 {[%clk 0:00:18]} 35. axb4 {[%clk 0:00:31]}  axb4 {[%clk 0:00:19]} 36. cxb4 {[%clk 0:00:31]}  Qc2+ {[%clk 0:00:19]} 37. Kg3 {[%clk 0:00:31]}  Qb3 {[%clk 0:00:18]} 38. Rdh1 {[%clk 0:00:22]}  g6 {[%clk 0:00:19]} 39. Kh4 {[%clk 0:00:06]}  d4 {[%clk 0:00:17]} 40. Rh3 {[%clk 0:00:05]}  d3 {[%clk 0:00:15]} 41. Qe4 {[%clk 0:00:04]}  d2 {[%clk 0:00:13]} 42. Qf3 {[%clk 0:00:02]}  Qxb2 {[%clk 0:00:08]} 43. Kg5 {[%clk 0:00:03]}  Qxb4 {[%clk 0:00:07]} 44. Qe4 {[%clk 0:00:02]}  Qe7+ {[%clk 0:00:07]} 45. Kh6 {[%clk 0:00:02]}  c3 {[%clk 0:00:08]} 46. f5 {[%clk 0:00:01]}  Rxf5 {[%clk 0:00:08]} 47. gxf5 {[%clk 0:00:01]}  Rxf5 {[%clk 0:00:09]} 48. Qa8+ {[%clk 0:00:01]}  Rf8 {[%clk 0:00:09]} 49. Qe4 {[%clk 0:00:01]}  c2 {[%clk 0:00:09]} 50. Qxc2 {[%clk 0:00:01]}  Rf5 {[%clk 0:00:07]} 51. Rg3 {[%clk 0:00:01]}  Qg7# {[%clk 0:00:07]} 0-1


[Site "https://www.chess.com"]